[Event "DFMM-LV 2023"]
[Site "Braunfels"]
[Date "2023.06.11"]
[Round "5.33"]
[White "Wagner, Margarethe"]
[Black "Krasnopeyeva, Julia"]
[Result "1/2-1/2"]
[Annotator "NA RC COMBH"]
[ECO "B42"]
[WhiteElo "1831"]
[BlackElo "1895"]
[PlyCount "115"]
[EventDate "2023.06.09"]
[EventType "team-tourn"]
[EventCountry "GER"]
[SourceTitle "playchess.com"]
[Source "ChessBase"]
[SourceQuality "1"]
[TimeControl "40/5400+30:1800+30"]

1. e4 {[%emt 0:00:03]} c5 {[%emt 0:00:07]} 2. Nf3 {[%emt 0:00:06]} e6 {[%emt 0:00:06]} 3. d4 {[%emt 0:00:05]} cxd4 {[%emt 0:00:07]} 4. Nxd4 {[%emt 0:00:05]} a6 {[%emt 0:00:08]} 5. Bd3 {[%emt 0:00:05]} Bc5 {[%emt 0:00:10]} 6. Nb3 {[%emt 0:00:06]} Ba7 {[%emt 0:00:07]} 7. O-O {[%emt 0:00:11]} Nc6 {[%emt 0:00:21]} 8. Qe2 {[%emt 0:01:05] 8.Qe2 scores better than 8.Qg4.} d6 {[%emt 0:00:30]} 9. Be3 {[%emt 0:01:32]} Nf6 {[%emt 0:00:41]} 10. c4 {[%emt 0:03:53] 10.Bxa7 is not played anymore.} O-O {[%emt 0:01:41]} 11. Bxa7 {[%emt 0:06:10]} Rxa7 {[%emt 0:00:17]} 12. Nc3 {[%emt 0:01:28]} e5 {[%emt 0:03:49]} 13. Rad1 {[%emt 0:06:47]} Be6 {[%emt 0:01:42] [#]} 14. f3 $146 {[%emt 0:09:53]} ({Predecessor:} 14. Qe3 Ra8 15. Be2 Qc7 16. Rc1 Ne7 17. Nd5 Bxd5 18. cxd5 Qd7 19. Na5 Rfc8 20. Nc4 {0-1 Mammadzada,G (2459)-Praggnanandhaa,R (2617) Hou Yifan Challenge rapid 2021 (9)}) 14... Ra8 {[%emt 0:04:37]} 15. Bb1 {[%emt 0:04:45]} Rc8 {[%emt 0:01:19]} 16. Nd5 {[%emt 0:10:41]} Kh8 {[%emt 0:07:43]} 17. Rd2 {[%emt 0:08:16]} Ng8 {[%emt 0:06:53]} 18. Rfd1 {[%emt 0:04:20]} Na5 {[%emt 0:04:00]} 19. Nxa5 {[%emt 0:07:44]} Qxa5 {[%emt 0:00:13]} 20. b3 {[%emt 0:06:21]} Rc6 {[%emt 0:04:21]} 21. Kh1 {[%emt 0:02:34]} Rfc8 {[%emt 0:04:46]} 22. Ne3 {[%emt 0:09:13]} Qc7 {[%emt 0:04:19]} 23. Nc2 {[%emt 0:01:24]} Qb6 {[%emt 0:03:16]} 24. Rd3 {[%emt 0:01:32]} Rd8 {[%emt 0:04:39]} 25. Qd2 {[%emt 0:00:11]} a5 {[%emt 0:00:51]} 26. a4 {[%emt 0:00:51]} Nf6 {[%emt 0:05:05]} 27. Na3 {[%emt 0:00:29]} Ne8 {[%emt 0:03:09]} 28. Nb5 {[%emt 0:00:16]} Rd7 {[%emt 0:01:30]} 29. Bc2 {[%emt 0:01:42]} Qd8 {[%emt 0:00:55]} 30. g3 {[%emt 0:01:51]} b6 {[%emt 0:03:17]} 31. Kg2 {[%emt 0:00:06]} h6 {[%emt 0:03:37]} 32. h3 {[%emt 0:00:20]} Qe7 {[%emt 0:01:46]} 33. f4 {[%emt 0:02:33]} exf4 {[%emt 0:01:41]} 34. gxf4 {[%emt 0:00:05]} f6 {[%emt 0:01:56]} 35. Re1 {[%emt 0:05:37]} Rc5 {[%emt 0:03:18]} 36. Bd1 {[%emt 0:00:41]} Bf7 {[%emt 0:01:11]} 37. Bg4 {[%emt 0:01:47]} Be6 {[%emt 0:00:39]} 38. Bf3 {[%emt 0:00:22]} Bf7 {[%emt 0:01:57]} 39. Nd4 {[%emt 0:01:08]} Bg6 {[%emt 0:02:26]} 40. Rde3 {[%emt 0:02:02]} Nc7 {[%emt 0:03:33]} 41. Bg4 {[%emt 0:05:03]} Rd8 {[%emt 0:01:09]} 42. Bf5 {[%emt 0:00:33]} Qf7 {[%emt 0:04:05]} 43. Bxg6 {[%emt 0:02:25]} Qxg6+ {[%emt 0:00:09]} 44. Rg3 $16 {[%emt 0:00:05]} Qe8 {[%emt 0:07:33]} 45. f5 {[%emt 0:08:48]} Re5 {[%emt 0:01:50]} 46. Rge3 {[%emt 0:00:08]} Qd7 {[%emt 0:01:40]} 47. Nf3 {[%emt 0:00:23]} Ree8 {[%emt 0:00:55]} 48. Rd3 {[%emt 0:00:21]} Na6 {[%emt 0:00:27]} 49. Rd1 {[%emt 0:05:36]} Qb7 {[%emt 0:01:45]} 50. Rxd6 {[%emt 0:00:55]} Rxd6 {[%emt 0:00:12]} 51. Qxd6 {[%emt 0:00:12]} Qxe4 {[%emt 0:00:33]} 52. Re1 {[%emt 0:05:16]} Qc2+ {[%emt 0:01:09]} 53. Kg1 {[%emt 0:01:04]} Rxe1+ {[%emt 0:00:26]} 54. Nxe1 {[%emt 0:00:01]} Qxb3 {[%emt 0:04:09]} 55. Qe6 {[%emt 0:00:36]} Qg3+ {[%emt 0:02:51]} 56. Ng2 {[%emt 0:00:08]} Qb8 {[%emt 0:00:09]} 57. Nf4 {[%emt 0:00:17]} Qxf4 {[%emt 0:01:32]} 58. Qe8+ {[%emt 0:00:06]} 1/2-1/2

[Event "DFMM-LV 2023"]
[Site "Braunfels"]
[Date "2023.06.11"]
[Round "5.34"]
[White "Mader, Lena"]
[Black "Albayrak, Nese Pinar"]
[Result "1/2-1/2"]
[Annotator "NA RC COMBH"]
[ECO "A24"]
[WhiteElo "1778"]
[BlackElo "1763"]
[PlyCount "50"]
[EventDate "2023.06.09"]
[EventType "team-tourn"]
[EventCountry "GER"]
[SourceTitle "playchess.com"]
[Source "ChessBase"]
[SourceQuality "1"]
[TimeControl "40/5400+30:1800+30"]

1. c4 {[%emt 0:00:02]} Nf6 {[%emt 0:00:04]} 2. g3 {[%emt 0:00:07]} g6 {[%emt 0:00:04]} 3. Bg2 {[%emt 0:00:10]} Bg7 {[%emt 0:00:07]} 4. Nf3 {[%emt 0:00:15]} d6 {[%emt 0:00:11]} 5. O-O {[%emt 0:00:27]} O-O {[%emt 0:00:07]} 6. Nc3 {[%emt 0:00:47]} e5 {[%emt 0:00:29]} 7. d3 {[%emt 0:00:07]} a5 {[%emt 0:00:10]} 8. Rb1 {[%emt 0:03:01]} Nbd7 {[%emt 0:02:05]} 9. a3 {[%emt 0:00:28]} c6 {[%emt 0:01:16]} 10. b4 {[%emt 0:06:15]} axb4 {[%emt 0:03:04]} 11. axb4 {[%emt 0:00:03]} Re8 {[%emt 0:00:47]} 12. b5 {[%emt 0:07:11]} Nc5 {[%emt 0:08:12]} 13. Bb2 {[%emt 0:04:59]} Bf5 {[%emt 0:07:18]} 14. Nd2 {[%emt 0:06:04]} Qd7 {[%emt 0:14:36]} 15. Re1 {[%emt 0:03:05]} e4 {[%emt 0:10:04]} 16. dxe4 {[%emt 0:06:53]} Nfxe4 {[%emt 0:02:29]} 17. Ndxe4 {[%emt 0:08:50]} Nxe4 {[%emt 0:00:28]} 18. Bxe4 {[%emt 0:01:56]} Bxe4 {[%emt 0:01:19]} 19. Nxe4 {[%emt 0:00:10]} Rxe4 {[%emt 0:00:35]} 20. Bxg7 {[%emt 0:09:34]} Kxg7 {[%emt 0:00:57]} 21. Qc2 {[%emt 0:02:46]} Qe6 {[%emt 0:09:28]} 22. Rbc1 {[%emt 0:02:10]} Kg8 {[%emt 0:02:57]} 23. e3 {[%emt 0:01:05]} Re5 {[%emt 0:03:24]} 24. Rb1 {[%emt 0:13:09]} Rc5 {[%emt 0:05:07]} 25. Rec1 {[%emt 0:03:08]} Qd7 {[%emt 0:06:55]} 1/2-1/2

[Event "DFMM-LV 2023"]
[Site "Braunfels"]
[Date "2023.06.11"]
[Round "5.35"]
[White "Albayrak, Berrak"]
[Black "Anisimova, Mariya"]
[Result "1/2-1/2"]
[Annotator "NA RC COMBH"]
[ECO "A05"]
[WhiteElo "1664"]
[BlackElo "1649"]
[PlyCount "55"]
[EventDate "2023.06.09"]
[EventType "team-tourn"]
[EventCountry "GER"]
[SourceTitle "playchess.com"]
[Source "ChessBase"]
[SourceQuality "1"]
[TimeControl "40/5400+30:1800+30"]

1. Nf3 {[%emt 0:00:02]} Nf6 {[%emt 0:00:06]} 2. g3 {[%emt 0:00:07]} g6 {[%emt 0:00:06]} 3. Bg2 {[%emt 0:00:06]} Bg7 {[%emt 0:00:04]} 4. O-O {[%emt 0:00:08]} d6 {[%emt 0:00:08]} 5. d3 {[%emt 0:00:09]} O-O {[%emt 0:00:07]} 6. e4 {[%emt 0:00:16]} e5 {[%emt 0:00:05]} 7. c3 {[%emt 0:01:16]} Nc6 {[%emt 0:00:20]} 8. Nbd2 {[%emt 0:01:59]} Nd7 {[%emt 0:02:28]} 9. a4 {[%emt 0:05:44]} f5 {[%emt 0:03:18]} 10. b4 {[%emt 0:07:42]} h6 {[%emt 0:05:37]} 11. Nh4 {[%emt 0:12:39]} Ne7 {[%emt 0:10:21]} 12. Qb3+ {[%emt 0:05:28]} Kh7 {[%emt 0:00:28]} 13. f4 {[%emt 0:01:22]} Nf6 {[%emt 0:09:26]} 14. Bb2 {[%emt 0:06:30]} exf4 {[%emt 0:08:03]} 15. gxf4 {[%emt 0:02:44]} fxe4 {[%emt 0:04:36]} 16. Nxe4 {[%emt 0:09:49]} Ng4 {[%emt 0:06:48]} 17. Bc1 {[%emt 0:08:58]} d5 {[%emt 0:10:10]} 18. Nf2 {[%emt 0:06:17]} d4 {[%emt 0:05:43]} 19. Nxg4 {[%emt 0:03:31]} Bxg4 {[%emt 0:00:07]} 20. c4 {[%emt 0:03:09]} c6 {[%emt 0:04:38]} 21. Bd2 {[%emt 0:08:03]} Qd7 {[%emt 0:07:03]} 22. b5 {[%emt 0:06:09]} Bh3 {[%emt 0:06:12]} 23. bxc6 {[%emt 0:04:01]} Nxc6 {[%emt 0:03:16]} 24. Bxh3 {[%emt 0:01:26]} Qxh3 {[%emt 0:00:09]} 25. Qxb7 {[%emt 0:00:50]} Rac8 {[%emt 0:06:47]} 26. Nf3 {[%emt 0:00:59]} Rfe8 {[%emt 0:00:27]} 27. Rae1 {[%emt 0:01:29]} Rf8 {[%emt 0:02:50]} 28. Rf2 {[%emt 0:02:20]} 1/2-1/2

[Event "DFMM-LV 2023"]
[Site "Braunfels"]
[Date "2023.06.11"]
[Round "5.36"]
[White "Mueller, Riyanna"]
[Black "Prinzen, Siri Marleen"]
[Result "1-0"]
[Annotator "NA RC COMBH"]
[ECO "B15"]
[WhiteElo "1687"]
[BlackElo "1724"]
[PlyCount "99"]
[EventDate "2023.06.09"]
[EventType "team-tourn"]
[EventCountry "GER"]
[SourceTitle "playchess.com"]
[Source "ChessBase"]
[SourceQuality "1"]
[TimeControl "40/5400+30:1800+30"]

1. e4 {[%emt 0:00:02]} c6 {[%emt 0:00:05]} 2. d4 {[%emt 0:00:24]} d5 {[%emt 0:00:04]} 3. f3 {[%emt 0:00:26]} g6 {[%emt 0:02:59]} 4. Nc3 {[%emt 0:01:37]} Bg7 {[%emt 0:04:55]} 5. Be3 {[%emt 0:00:46]} e6 {[%emt 0:04:04]} 6. e5 {[%emt 0:01:59]} Ne7 {[%emt 0:00:59]} 7. f4 {[%emt 0:01:33]} Nd7 {[%emt 0:03:28]} 8. Nf3 {[%emt 0:02:33]} b6 {[%emt 0:03:28]} 9. Bd3 {[%emt 0:06:55]} Nf5 {[%emt 0:03:22]} 10. Bf2 {[%emt 0:01:06]} c5 {[%emt 0:03:17]} 11. Bxf5 {[%emt 0:06:02]} exf5 {[%emt 0:06:11]} 12. Bh4 {[%emt 0:03:19]} f6 {[%emt 0:05:38]} 13. Nxd5 {[%emt 0:01:22]} Bb7 {[%emt 0:04:58]} 14. dxc5 {[%emt 0:03:57]} Nxc5 {[%emt 0:02:21]} 15. Nxf6+ {[%emt 0:03:05]} Bxf6 {[%emt 0:00:18]} 16. Bxf6 {[%emt 0:00:34]} Qxd1+ {[%emt 0:00:20]} 17. Rxd1 {[%emt 0:00:08]} Bxf3 {[%emt 0:02:30]} 18. gxf3 {[%emt 0:00:11]} O-O {[%emt 0:02:22]} 19. Be7 {[%emt 0:03:49]} Rfc8 {[%emt 0:00:30]} 20. c3 {[%emt 0:04:28]} Ne6 {[%emt 0:01:43]} 21. Bg5 {[%emt 0:01:33]} Rc4 {[%emt 0:02:19]} 22. Kf2 {[%emt 0:01:19]} Re8 {[%emt 0:01:10]} 23. Rhe1 {[%emt 0:03:03]} b5 {[%emt 0:05:32]} 24. Rd5 {[%emt 0:04:27]} a6 {[%emt 0:05:33]} 25. Re3 {[%emt 0:02:44]} Nxf4 {[%emt 0:03:58]} 26. Bxf4 {[%emt 0:00:16]} Rxf4 {[%emt 0:00:02]} 27. Rd4 {[%emt 0:01:04]} g5 {[%emt 0:01:42]} 28. Rxf4 {[%emt 0:00:24]} gxf4 {[%emt 0:00:01]} 29. Re2 {[%emt 0:00:08]} Kf7 {[%emt 0:01:56]} 30. e6+ {[%emt 0:03:03]} Ke7 {[%emt 0:03:23]} 31. Ke1 {[%emt 0:03:28]} Rg8 {[%emt 0:01:21]} 32. Kd2 {[%emt 0:19:18]} Rg1 {[%emt 0:01:45]} 33. Re5 {[%emt 0:03:50]} Rg2+ {[%emt 0:01:21]} 34. Re2 {[%emt 0:03:16]} Rg1 {[%emt 0:00:06]} 35. Rf2 {[%emt 0:10:46]} Kxe6 {[%emt 0:05:12]} 36. Kc2 {[%emt 0:02:35]} Re1 {[%emt 0:03:30]} 37. Kb3 {[%emt 0:01:33]} Ra1 {[%emt 0:07:25]} 38. a3 {[%emt 0:01:09]} Rd1 {[%emt 0:05:01]} 39. Kb4 {[%emt 0:00:57]} Rd6 {[%emt 0:01:23]} 40. Kc5 {[%emt 0:00:42]} Rd5+ {[%emt 0:00:32]} 41. Kb4 {[%emt 0:01:21]} Rd6 {[%emt 0:00:22]} 42. Re2+ {[%emt 0:02:35]} Kf6 {[%emt 0:01:43]} 43. a4 {[%emt 0:03:00]} bxa4 {[%emt 0:04:34]} 44. Kxa4 {[%emt 0:00:15]} Rd3 {[%emt 0:00:25]} 45. Rf2 {[%emt 0:00:19]} Rd5 {[%emt 0:00:40]} 46. c4 {[%emt 0:01:37]} Rd4 {[%emt 0:00:43]} 47. b3 {[%emt 0:00:42]} Ke6 {[%emt 0:02:00]} 48. Re2+ {[%emt 0:06:41]} Kd6 {[%emt 0:00:07]} 49. Re8 {[%emt 0:04:02]} Kd7 {[%emt 0:00:00]} 50. Re5 {[%emt 0:00:37]} 1-0

[Event "DFMM-LV 2023"]
[Site "Braunfels"]
[Date "2023.06.11"]
[Round "5.37"]
[White "Stark, Amalia"]
[Black "Moench, Dorothee"]
[Result "0-1"]
[Annotator "NA RC COMBH"]
[ECO "B07"]
[WhiteElo "1499"]
[BlackElo "1722"]
[PlyCount "106"]
[EventDate "2023.06.09"]
[EventType "team-tourn"]
[EventCountry "GER"]
[SourceTitle "playchess.com"]
[Source "ChessBase"]
[SourceQuality "1"]
[TimeControl "40/5400+30:1800+30"]

1. e4 {[%emt 0:00:03]} d6 {[%emt 0:00:07]} 2. d4 {[%emt 0:00:23]} Nf6 {[%emt 0:00:15]} 3. Nc3 {[%emt 0:00:23]} g6 {[%emt 0:00:05]} 4. Bc4 {[%emt 0:06:35]} Bg7 {[%emt 0:00:37]} 5. h3 {[%emt 0:02:06]} O-O {[%emt 0:00:32]} 6. Bg5 {[%emt 0:01:59]} h6 {[%emt 0:01:33]} 7. Bh4 {[%emt 0:01:02]} a6 {[%emt 0:01:00]} 8. f4 {[%emt 0:00:54]} b5 {[%emt 0:00:33]} 9. Bd3 {[%emt 0:00:54]} Bb7 {[%emt 0:01:33]} 10. a3 {[%emt 0:01:05]} c5 {[%emt 0:00:36]} 11. d5 {[%emt 0:02:15]} c4 {[%emt 0:01:39]} 12. Be2 {[%emt 0:01:40]} Nbd7 {[%emt 0:02:52]} 13. Nf3 {[%emt 0:05:42]} Nc5 {[%emt 0:02:37]} 14. Nd2 {[%emt 0:04:05]} Qc7 {[%emt 0:05:48]} 15. Bf3 {[%emt 0:04:28]} e6 {[%emt 0:06:29]} 16. O-O {[%emt 0:04:25]} exd5 {[%emt 0:00:50]} 17. exd5 {[%emt 0:00:19]} Rfe8 {[%emt 0:01:36]} 18. Re1 {[%emt 0:02:48]} Rxe1+ {[%emt 0:00:16]} 19. Qxe1 {[%emt 0:00:01]} Re8 {[%emt 0:00:28]} 20. Qf1 {[%emt 0:00:47]} Ncd7 {[%emt 0:02:40]} 21. Bf2 {[%emt 0:02:12]} Nb6 {[%emt 0:03:39]} 22. Bxb6 {[%emt 0:02:05]} Qxb6+ {[%emt 0:00:09]} 23. Qf2 {[%emt 0:00:07]} Qxf2+ {[%emt 0:01:33]} 24. Kxf2 {[%emt 0:00:03]} Nd7 {[%emt 0:04:18]} 25. Rb1 {[%emt 0:16:33]} f5 {[%emt 0:03:31]} 26. g4 {[%emt 0:00:38]} Bd4+ {[%emt 0:01:32]} 27. Kg3 {[%emt 0:01:09]} Bxc3 {[%emt 0:00:45]} 28. bxc3 {[%emt 0:00:34]} Nb6 {[%emt 0:03:34]} 29. Nf1 {[%emt 0:02:21]} Na4 {[%emt 0:02:32]} 30. gxf5 {[%emt 0:03:01]} Nxc3 {[%emt 0:03:18]} 31. Ra1 {[%emt 0:00:53]} gxf5 {[%emt 0:00:22]} 32. Bh5 {[%emt 0:00:28]} Re7 {[%emt 0:00:36]} 33. Bf3 {[%emt 0:00:35]} Kg7 {[%emt 0:01:53]} 34. Kh4 {[%emt 0:02:17]} Bxd5 {[%emt 0:02:57]} 35. Bh5 {[%emt 0:01:43]} Be4 {[%emt 0:03:10]} 36. Ng3 {[%emt 0:01:25]} d5 {[%emt 0:00:50]} 37. Rg1 {[%emt 0:00:20]} Kf8 {[%emt 0:02:22]} 38. Bg6 {[%emt 0:02:22]} d4 {[%emt 0:11:43]} 39. Nxf5 {[%emt 0:13:58]} Bxf5 {[%emt 0:00:33]} 40. Bxf5 {[%emt 0:00:02]} Rf7 {[%emt 0:02:32]} 41. Bg6 {[%emt 0:33:17]} Rxf4+ {[%emt 0:30:43]} 42. Kh5 {[%emt 0:00:01]} Rf3 {[%emt 0:01:02]} 43. h4 {[%emt 0:00:01]} d3 {[%emt 0:03:01]} 44. Re1 {[%emt 0:01:09]} Ne2 {[%emt 0:09:29]} 45. Kxh6 {[%emt 0:01:14]} Rf6 {[%emt 0:02:45]} 46. cxd3 {[%emt 0:00:55]} cxd3 {[%emt 0:01:16]} 47. Kg5 {[%emt 0:00:41]} d2 {[%emt 0:03:39]} 48. Rxe2 {[%emt 0:02:44]} Rxg6+ {[%emt 0:00:20]} 49. Kxg6 {[%emt 0:00:16]} d1=Q {[%emt 0:00:16]} 50. Rf2+ {[%emt 0:00:17]} Ke8 {[%emt 0:00:56]} 51. Rf6 {[%emt 0:00:39]} Qg4+ {[%emt 0:00:48]} 52. Kh7 {[%emt 0:00:16]} Qxh4+ {[%emt 0:00:14]} 53. Rh6 {[%emt 0:00:01]} Qe7+ {[%emt 0:00:16]} 0-1

[Event "DFMM-LV 2023"]
[Site "Braunfels"]
[Date "2023.06.11"]
[Round "5.38"]
[White "Richter, Johanna"]
[Black "Alferova, Emily"]
[Result "1-0"]
[Annotator "NA RC COMBH"]
[ECO "D35"]
[WhiteElo "1470"]
[BlackElo "1612"]
[PlyCount "54"]
[EventDate "2023.06.09"]
[EventType "team-tourn"]
[EventCountry "GER"]
[SourceTitle "playchess.com"]
[Source "ChessBase"]
[SourceQuality "1"]
[TimeControl "40/5400+30:1800+30"]

1. d4 {[%emt 0:00:01]} d5 {[%emt 0:00:10]} 2. c4 {[%emt 0:00:03]} c6 {[%emt 0:00:37]} 3. Nf3 {[%emt 0:00:04]} Nf6 {[%emt 0:01:02]} 4. Bg5 {[%emt 0:00:05]} e6 {[%emt 0:01:09]} 5. e3 {[%emt 0:00:09]} Be7 {[%emt 0:00:18]} 6. Nc3 {[%emt 0:00:13]} Nbd7 {[%emt 0:00:41]} 7. cxd5 {[%emt 0:00:07]} exd5 {[%emt 0:00:37]} 8. Bd3 {[%emt 0:00:07]} h6 {[%emt 0:02:06]} 9. Bh4 {[%emt 0:00:06]} O-O {[%emt 0:03:19]} 10. O-O {[%emt 0:00:06]} b6 {[%emt 0:06:53]} 11. Qc2 {[%emt 0:00:57]} Bb7 {[%emt 0:01:27]} 12. a3 {[%emt 0:00:57]} c5 {[%emt 0:08:57]} 13. dxc5 {[%emt 0:03:39]} Bxc5 {[%emt 0:12:25]} 14. Rfd1 {[%emt 0:02:30]} a6 {[%emt 0:27:03]} 15. Bf5 {[%emt 0:02:00]} Qe8 {[%emt 0:09:07]} 16. Bxd7 {[%emt 0:01:26]} Qxd7 {[%emt 0:11:26]} 17. Bxf6 {[%emt 0:00:33]} gxf6 {[%emt 0:00:06]} 18. Nxd5 {[%emt 0:11:35]} Qe6 {[%emt 0:06:39]} 19. Nc7 {[%emt 0:00:28]} Qg4 {[%emt 0:01:49]} 20. Nd5 {[%emt 0:02:23]} Qe6 {[%emt 0:01:05]} 21. Nf4 {[%emt 0:01:17]} Qg4 {[%emt 0:02:09]} 22. h3 {[%emt 0:01:09]} Qc8 {[%emt 0:01:26]} 23. Qe2 {[%emt 0:00:49]} Kh8 {[%emt 0:00:44]} 24. Rac1 {[%emt 0:00:17]} Qf5 {[%emt 0:00:40]} 25. b4 {[%emt 0:01:03]} Be7 {[%emt 0:00:31]} 26. Rc7 {[%emt 0:00:53]} Bxf3 {[%emt 0:00:32]} 27. Qxf3 {[%emt 0:00:05]} Rae8 {[%emt 0:00:00]} 1-0

[Event "DFMM-LV 2023"]
[Site "Braunfels"]
[Date "2023.06.11"]
[Round "5.40"]
[White "Perovic-Ottstadt, Sanja"]
[Black "Albayrak, Melissa"]
[Result "0-1"]
[Annotator "NA RC COMBH"]
[ECO "D12"]
[WhiteElo "1443"]
[BlackElo "1362"]
[PlyCount "56"]
[EventDate "2023.06.09"]
[EventType "team-tourn"]
[EventCountry "GER"]
[SourceTitle "playchess.com"]
[Source "ChessBase"]
[SourceQuality "1"]
[TimeControl "40/5400+30:1800+30"]

1. d4 {[%emt 0:00:06]} d5 {[%emt 0:00:03]} 2. Nf3 {[%emt 0:00:10]} Nf6 {[%emt 0:00:15]} 3. e3 {[%emt 0:00:23]} Bf5 {[%emt 0:02:16]} 4. c4 {[%emt 0:00:27]} c6 {[%emt 0:00:30]} 5. Nc3 {[%emt 0:00:26]} e6 {[%emt 0:02:46]} 6. Bd3 {[%emt 0:01:09]} Bxd3 {[%emt 0:01:30]} 7. Qxd3 {[%emt 0:00:10]} Nbd7 {[%emt 0:01:07]} 8. O-O {[%emt 0:00:18]} Bd6 {[%emt 0:00:48]} 9. b3 {[%emt 0:00:26]} O-O {[%emt 0:00:41]} 10. Bb2 {[%emt 0:00:18]} Re8 {[%emt 0:01:30]} 11. Rfe1 {[%emt 0:01:32]} e5 {[%emt 0:00:35]} 12. dxe5 {[%emt 0:01:03]} Nxe5 {[%emt 0:00:58]} 13. Nxe5 {[%emt 0:00:31]} Bxe5 {[%emt 0:00:06]} 14. Rac1 {[%emt 0:01:43]} Ne4 {[%emt 0:04:30]} 15. f3 {[%emt 0:03:54]} Nc5 {[%emt 0:08:27]} 16. Qc2 {[%emt 0:13:28]} d4 {[%emt 0:01:22]} 17. exd4 {[%emt 0:00:27]} Qxd4+ {[%emt 0:00:49]} 18. Kh1 {[%emt 0:00:40]} Nd3 {[%emt 0:00:49]} 19. Re2 {[%emt 0:03:41]} Nxc1 {[%emt 0:02:00]} 20. Qxc1 {[%emt 0:00:40]} Bf4 {[%emt 0:02:55]} 21. Qe1 {[%emt 0:01:10]} Rxe2 {[%emt 0:02:54]} 22. Qxe2 {[%emt 0:00:14]} Qd2 {[%emt 0:00:33]} 23. Qxd2 {[%emt 0:02:28]} Bxd2 {[%emt 0:00:07]} 24. Ne4 {[%emt 0:00:10]} Rd8 {[%emt 0:01:14]} 25. g3 {[%emt 0:01:44]} f5 {[%emt 0:00:32]} 26. Nc5 {[%emt 0:01:13]} Be3 {[%emt 0:00:41]} 27. Nxb7 {[%emt 0:01:27]} Rd1+ {[%emt 0:00:10]} 28. Kg2 {[%emt 0:00:19]} Rd2+ {[%emt 0:00:06]} 0-1

[Event "DFMM-LV 2023"]
[Site "Braunfels"]
[Date "2023.06.11"]
[Round "5.41"]
[White "Nguyen, Ha Thanh"]
[Black "Rath, Alina"]
[Result "1/2-1/2"]
[Annotator "TA"]
[ECO "B65"]
[WhiteElo "1968"]
[BlackElo "2051"]
[PlyCount "37"]
[EventDate "2023.06.09"]
[EventType "team-tourn"]
[EventCountry "GER"]
[SourceTitle "playchess.com"]
[Source "ChessBase"]
[SourceQuality "1"]
[TimeControl "40/5400+30:1800+30"]

{[%evp 23,37,-5,-3,-8,-6,-26,36,34,34,39,34,34,45,48,41,27]} 1. e4 {[%emt 0:00:02]} c5 {[%emt 0:00:07]} 2. Nf3 {[%emt 0:00:09]} Nc6 {[%emt 0:00:07]} 3. d4 {[%emt 0:00:06]} cxd4 {[%emt 0:00:06]} 4. Nxd4 {[%emt 0:00:05]} Nf6 {[%emt 0:00:21]} 5. Nc3 {[%emt 0:00:11]} d6 {[%emt 0:00:05]} 6. Bg5 {[%emt 0:00:48]} e6 {[%emt 0:00:15]} 7. Qd2 {[%emt 0:01:02]} Be7 {[%emt 0:00:49]} 8. O-O-O {[%emt 0:00:40]} O-O {[%emt 0:00:27]} 9. f4 {[%emt 0:01:22]} Nxd4 {[%emt 0:01:43]} 10. Qxd4 {[%emt 0:00:10]} h6 {[%emt 0:01:06]} 11. Bh4 {[%emt 0:10:13]} Qa5 {[%emt 0:01:05]} 12. Kb1 {[%emt 0:02:15]} e5 $1 {[%emt 0:01:42]} 13. fxe5 {[%emt 0:06:14] B65: Sicilian: Richter-Rauzer: 7...Be7 8 0-0-0 0-0 9 f4 Nxd4.} dxe5 {[%emt 0:00:11]} 14. Qf2 {[%emt 0:04:40]} Be6 {[%emt 0:05:43]} (14... Ng4 $11 15. Qe1 Bxh4 16. Qxh4 Qb6) 15. Bxf6 $14 {[%emt 0:03:22] White is slightly better.} Bxf6 {[%emt 0:00:32]} 16. Nd5 {[%emt 0:01:23]} Bxd5 {[%emt 0:06:15]} 17. Rxd5 {[%emt 0:00:50] [#]} Qb4 $146 {[%emt 0:02:09]} ({Predecessor:} 17... Rad8 18. Bc4 Qb4 19. Qe2 Rxd5 20. Bxd5 Qe7 21. Rf1 b6 22. Rf3 Rc8 23. a3 Qc5 {1-0 Radulov,I (2465)-Armas,J (2415) Capablanca Memorial-16 Premier II 1980 (6)}) 18. Bd3 {[%emt 0:01:12]} a6 {[%emt 0:00:30]} 19. Qe1 {[%emt 0:01:17] Weighted Error Value: White=0.05 (flawless) /Black=0.17 (very precise)} 1/2-1/2